[Event "1st Chessable Sunway Formentera 2022"]
[Site "Formentera Punta Prima"]
[Date "2022.05.04"]
[Round "6"]
[White "Narciso Dublan, Marc"]
[Black "Tsatsalashvili, Keti"]
[Result "1-0"]
[ECO "D02"]
[WhiteElo "2464"]
[BlackElo "2331"]
[Annotator "TA"]
[PlyCount "135"]
[EventDate "2022.05.05"]
[EventType "swiss"]
[EventCountry "ESP"]
[SourceTitle "playchess.com"]
[Source "ChessBase"]
[SourceQuality "1"]
[TimeControl "40/5400+30:1800+30"]

{[%evp 9,135,9,18,17,22,20,16,19,26,14,35,32,30,43,31,35,61,41,69,64,43,20,40,56,43,51,62,52,56,38,39,57,58,33,43,39,20,31,36,30,36,16,15,19,47,47,50,33,120,50,83,85,112,87,135,83,71,43,47,54,45,43,75,54,51,22,87,0,0,0,0,0,0,0,53,53,72,64,47,27,64,51,104,126,80,85,150,181,160,150,383,384,381,352,596,298,1333,1189,1558,1343,1506,1322,1600,1357,2398,2096,2126,1764,12835,5693,12837,2516,12841,12841,12841,12842,12842,12843,12843,12843,12847,12847,12848,12848,29997,29995,29998,29999]} 1. d4 {[%emt 0:00:30]} d5 {[%emt 0:00:06]} 2. Nf3 {[%emt 0:01:12]} Nf6 {[%emt 0:00:05]} 3. Bf4 {[%emt 0:00:05]} c5 {[%emt 0:00:05]} 4. e3 {[%emt 0:00:08]} e6 {[%emt 0:00:00]} 5. Nbd2 {[%emt 0:00:05]} Bd6 {[%emt 0:00:05]} 6. dxc5 {[%emt 0:00:00] D02: 1 d4 d5 2 Nf3 sidelines, including 2...Nf6 3 g3 and 2...Nf6 3 Bf4.} Bxc5 {[%emt 0:00:05]} 7. c4 {[%emt 0:00:10]} O-O {[%emt 0:00:05]} 8. a3 {[%emt 0:00:06] The position is equal.} h6 {[%emt 0:00:00] [#]} 9. Be2 $146 {[%emt 0:00:05]} ({Predecessor:} 9. b4 Be7 10. Be2 a5 11. O-O Nh5 12. Be5 Nc6 13. b5 Nxe5 14. Nxe5 {1-0 (77) Stajner,S (2404)-Drnovsek,G (2394) Slovenia 2016}) 9... Re8 {[%emt 0:00:05]} 10. O-O {[%emt 0:00:00]} Bd6 {[%emt 0:00:06]} 11. Bxd6 {[%emt 0:00:49]} Qxd6 {[%emt 0:00:06]} 12. Qc2 {[%emt 0:00:41]} Nbd7 {[%emt 0:00:05]} 13. Rac1 {[%emt 0:00:10]} b6 {[%emt 0:00:05]} 14. cxd5 {[%emt 0:00:10]} Nxd5 {[%emt 0:00:00]} 15. Ne4 {[%emt 0:00:05]} Qf8 {[%emt 0:00:05]} 16. Qc6 {[%emt 0:00:05]} Rb8 {[%emt 0:00:05]} 17. Qa4 {[%emt 0:00:00][%cal Oc1c8]} f5 {[%emt 0:00:05]} 18. Ned2 {[%emt 0:00:05][%cal Oc1c8] Threatens to win with Rxc8! White is more active.} Nc5 {[%emt 0:00:06]} 19. Qd4 {[%emt 0:00:40]} ({But not} 19. Qxa7 $2 Rb7 20. Qa8 Bd7 21. Qxe8 Qxe8 $19) 19... Bb7 {[%emt 0:00:05]} 20. b4 {[%emt 0:00:00]} Nd7 {[%emt 0:00:07]} 21. Bb5 {[%emt 0:00:14]} Red8 {[%emt 0:00:05]} 22. Bc6 {[%emt 0:00:10]} Bxc6 {[%emt 0:00:05]} 23. Rxc6 {[%emt 0:00:00]} Qe8 {[%emt 0:00:05][%cal Od7c5]} 24. Rfc1 {[%emt 0:00:05] Against Nc5} Rbc8 {[%emt 0:00:00]} 25. Qc4 {[%emt 0:00:10][%cal Rc6c8]} Rxc6 {[%emt 0:00:05]} 26. Qxc6 {[%emt 0:00:05]} Nf8 {[%emt 0:00:05]} 27. Qxe8 {[%emt 0:00:05]} Rxe8 {[%emt 0:00:05]} 28. Nd4 {[%emt 0:00:46]} a6 {[%emt 0:00:05]} (28... Rd8 $14) 29. N2f3 {[%emt 0:00:00]} (29. Rc6 $16) 29... Kf7 {[%emt 0:00:07]} 30. Rc6 {[%emt 0:00:29]} Nd7 {[%emt 0:00:05]} 31. h4 {[%emt 0:00:04]} g6 {[%emt 0:00:00]} (31... a5 $142) 32. Kf1 {[%emt 0:00:05]} ({White should try} 32. Rd6 N5f6 33. Ng5+ hxg5 34. hxg5) 32... Kf6 $16 {[%emt 0:00:05]} 33. Ke2 {[%emt 0:00:00]} g5 {[%emt 0:00:06]} 34. hxg5+ {[%emt 0:00:11]} hxg5 {[%emt 0:00:05][%cal Bh6g5,Bg5g4][%mdl 32]} 35. Rd6 {[%emt 0:00:04]} Nf8 {[%emt 0:00:00]} 36. Kd3 {[%emt 0:00:16][%cal Od4f5]} g4 $1 {[%emt 0:00:00]} 37. Nd2 {[%emt 0:00:05][%cal Od4f5]} (37. Nh4 $5 {[%cal Rh4f5]}) 37... Rc8 {[%emt 0:00:05]} (37... Ng6 $11 {remains equal.}) 38. Rc6 {[%emt 0:00:05]} ({Much worse is} 38. Nxe6 Ke5 39. Nc4+ Rxc4 40. Kxc4 Kxd6 $11) ({White should play} 38. Nc4 $1 $16 {[%cal Rc4b6]}) 38... Rxc6 $11 {[%emt 0:00:05]} 39. Nxc6 {[%emt 0:00:00][%mdl 4096] Endgame KNN-KNN} Nd7 {[%emt 0:00:05] Against Nb8} 40. g3 {[%emt 0:00:05]} Nc7 {[%emt 0:00:05]} 41. e4 {[%emt 0:30:00]} Kg5 {[%emt 0:30:15]} (41... b5 $11) 42. Nc4 $1 $14 {[%emt 0:00:00]} Kf6 {[%emt 0:00:05]} 43. e5+ {[%emt 0:00:05]} Kg5 {[%emt 0:00:06]} 44. Nd6 {[%emt 0:00:05]} Kg6 {[%emt 0:00:10]} 45. Kd4 {[%emt 0:00:07]} Kg7 {[%emt 0:00:03]} (45... Nd5 $14) 46. a4 $16 {[%emt 0:00:05]} Kf8 {[%emt 0:00:04]} (46... Kg8 $142) 47. a5 {[%emt 0:00:00]} bxa5 {[%emt 0:00:06]} (47... Kg7 $142) 48. bxa5 {[%emt 0:00:05]} Kg7 {[%emt 0:00:30]} 49. Kc4 {[%emt 0:00:05] Black must now prevent Nb7.} Kf8 $2 {[%emt 0:00:00] [#] This move loses the game for Black.} (49... Kg6 $16) 50. Nb7 $1 $18 {[%emt 0:00:26]} Nb5 {[%emt 0:00:05] [#]} 51. Kb4 $1 {[%emt 0:00:05]} Nc7 $2 {[%emt 0:00:06]} (51... f4 52. gxf4 Nc7) 52. Nc5 {[%emt 0:00:05]} Ke8 {[%emt 0:00:05]} (52... Nd5+ 53. Kc4 Nxc5) 53. Nxd7 {[%emt 0:00:05]} Kxd7 {[%emt 0:00:00] KN-KN} 54. Kc5 {[%emt 0:00:05]} Nd5 {[%emt 0:00:05]} 55. Nb8+ {[%emt 0:00:05]} Kc8 {[%emt 0:00:05]} 56. Nxa6 {[%emt 0:00:05] And now Kd6 would win.} f4 {[%emt 0:00:00]} 57. Kd6 {[%emt 0:00:12] aiming for Nc5.} Nc3 {[%emt 0:00:03]} 58. Nc5 {[%emt 0:00:10]} Nd1 {[%emt 0:00:05]} 59. a6 {[%emt 0:00:00] Intending a7 and mate.} Kb8 {[%emt 0:00:20]} 60. Kxe6 {[%emt 0:00:05]} (60. Nxe6 $142 f3 61. Nc5) 60... Nxf2 {[%emt 0:00:06]} 61. Kf5 {[%emt 0:00:05]} fxg3 {[%emt 0:00:10]} 62. e6 {[%emt 0:00:00] e7 would kill now.} g2 {[%emt 0:00:05]} 63. e7 {[%emt 0:00:05]} g1=Q {[%emt 0:00:04]} 64. e8=Q+ {[%emt 0:00:06]} Kc7 {[%emt 0:00:16]} 65. Ne6+ {[%emt 0:00:10]} Kb6 {[%emt 0:00:05]} 66. Qb8+ {[%emt 0:00:04]} Kc6 {[%emt 0:00:31]} 67. a7 {[%emt 0:00:05]} Nd3 {[%emt 0:00:00]} 68. a8=Q+ {[%emt 0:00:05] Weighted Error Value: White=0.10 (very precise) /Black=0.34} 1-0

[Event "1st Chessable Sunway Formentera 2022"]
[Site "Formentera Punta Prima"]
[Date "2022.05.04"]
[Round "6"]
[White "Jarmula, Lukasz"]
[Black "Alinasab, Mobina"]
[Result "1-0"]
[ECO "C09"]
[WhiteElo "2459"]
[BlackElo "2373"]
[Annotator "TA"]
[PlyCount "211"]
[EventDate "2022.05.05"]
[EventType "swiss"]
[EventCountry "ESP"]
[SourceTitle "playchess.com"]
[Source "ChessBase"]
[SourceQuality "1"]
[TimeControl "40/5400+30:1800+30"]

{[%evp 21,211,23,27,31,22,28,34,32,32,38,56,56,47,51,51,50,51,57,57,54,64,59,74,68,66,67,75,86,87,77,73,81,81,73,80,71,87,73,99,85,102,75,109,64,90,75,90,90,117,90,90,90,90,87,91,66,77,70,70,70,70,75,103,52,77,65,65,40,54,43,118,51,135,135,135,135,135,135,135,118,118,118,688,581,631,118,118,118,118,0,118,118,135,135,135,135,135,127,135,135,135,118,135,135,135,118,135,0,135,0,141,0,118,0,143,0,696,0,0,0,0,0,0,0,489,445,1399,1389,1301,1199,1764,1764,1764,1764,1764,1764,1717,1747,1757,1742,1742,1735,1728,1710,1697,1701,1701,1662,1537,1697,1393,1386,1810,1855,1963,1808,1451,1349,29951,11501,29975,29976,29976,29977,29977,29978,29978,29979,29979,29980,29981,29982,29982,29983,29989,29986,29989,29986,29986,29986,29987,29988,29988,29987,29989,29988,29988,29988,29988,29988,29989,29989]} 1. e4 {[%emt 0:03:05]} c5 {[%emt 0:00:10]} 2. Nf3 {[%emt 0:00:08]} e6 {[%emt 0:00:13]} 3. c3 {[%emt 0:00:10]} d5 {[%emt 0:00:35]} 4. exd5 {[%emt 0:00:15]} exd5 {[%emt 0:00:33]} 5. d4 {[%emt 0:00:08]} Nc6 {[%emt 0:00:05]} 6. Bb5 {[%emt 0:00:17]} Bd6 {[%emt 0:00:24]} 7. dxc5 {[%emt 0:01:06]} Bxc5 {[%emt 0:00:08]} 8. O-O {[%emt 0:00:16]} Nge7 {[%emt 0:00:31]} 9. Nbd2 {[%emt 0:00:38]} O-O {[%emt 0:00:15]} 10. Nb3 {[%emt 0:00:29]} Bb6 {[%emt 0:00:15]} 11. Re1 {[%emt 0:02:07]} Bg4 {[%emt 0:05:46]} 12. h3 {[%emt 0:02:25] C09: French Tarrasch: 3...c5 4 exd5 exd5 5 Ngf3 Nc6.} Bh5 {[%emt 0:00:59]} 13. Be3 {[%emt 0:01:47]} Bxe3 {[%emt 0:21:58]} 14. Rxe3 {[%emt 0:01:54] White is slightly better.} Qd6 {[%emt 0:04:18]} 15. Be2 {[%emt 0:02:42]} Rad8 {[%emt 0:05:55]} 16. Nfd4 {[%emt 0:03:07]} Bg6 {[%emt 0:07:24] [#]} 17. Bb5 $146 {[%emt 0:04:59]} ({Predecessor:} 17. Qd2 Nc8 18. h4 h6 19. Nxc6 bxc6 20. h5 Be4 21. Rd1 f5 22. Qd4 Bc2 23. Rd2 {1-0 (52) Dzhumaev,M (2530)-Korobov,A (2702) Kolkata 2012}) 17... Nxd4 {[%emt 0:01:25]} 18. Nxd4 {[%emt 0:03:28]} (18. Qxd4 Nf5 19. Qxa7 Ra8 $15) 18... a6 {[%emt 0:05:42]} 19. Bf1 {[%emt 0:06:33]} Rd7 {[%emt 0:03:18]} 20. Qb3 {[%emt 0:04:44]} Qc5 {[%emt 0:00:24]} 21. Rd1 {[%emt 0:01:38]} Rfd8 {[%emt 0:02:07]} 22. a3 {[%emt 0:03:50]} h6 {[%emt 0:00:58]} 23. Qb4 {[%emt 0:02:24]} Qxb4 {[%emt 0:06:11]} 24. axb4 {[%emt 0:00:14]} Nf5 {[%emt 0:00:31]} 25. Nxf5 {[%emt 0:04:29]} Bxf5 {[%emt 0:00:06]} 26. Rd4 {[%emt 0:00:39]} Kf8 {[%emt 0:00:35]} 27. g4 {[%emt 0:01:01]} Bg6 {[%emt 0:05:42]} 28. Bg2 {[%emt 0:05:37]} f6 {[%emt 0:00:09]} 29. f4 {[%emt 0:01:11]} Bf7 {[%emt 0:07:06]} 30. Kf2 {[%emt 0:03:22]} Rd6 {[%emt 0:02:59]} 31. f5 {[%emt 0:06:15]} R6d7 {[%emt 0:01:07]} 32. Ke2 {[%emt 0:02:25] White is more active.} Rd6 {[%emt 0:05:38]} 33. Kd2 {[%emt 0:00:34]} R6d7 {[%emt 0:00:51]} 34. Red3 {[%emt 0:01:13]} b5 {[%emt 0:10:53]} 35. b3 {[%emt 0:06:38]} Ke7 {[%emt 0:00:25]} 36. Re3+ {[%emt 0:00:14]} Kf8 {[%emt 0:00:29]} 37. Re1 {[%emt 0:01:15]} Rd6 {[%emt 0:00:23]} 38. Ra1 {[%emt 0:01:26]} Ke7 {[%emt 0:00:10]} 39. Kc2 {[%emt 0:00:49]} Kd7 {[%emt 0:02:23]} 40. Re1 {[%emt 0:00:00]} Kc7 {[%emt 0:00:00]} 41. Kd3 {[%emt 0:03:43]} R8d7 {[%emt 0:01:18]} 42. Bf3 {[%emt 0:00:50]} (42. Rf4 $16) 42... Kd8 {[%emt 0:03:08]} 43. h4 {[%emt 0:04:26]} Re7 {[%emt 0:01:31]} 44. Rxe7 {[%emt 0:01:12]} Kxe7 $14 {[%emt 0:00:05][%mdl 4096] Endgame KRB-KRB} 45. Ke3 {[%emt 0:00:12]} Kd7 {[%emt 0:00:59]} ({Better is} 45... Rd8 $14) 46. Rd1 {[%emt 0:01:57]} (46. Rd3 $16) 46... Kc7 {[%emt 0:05:56]} (46... d4+ $1 $14 47. cxd4 (47. Rxd4 Rxd4 48. Kxd4 Bxb3 $11) 47... Bxb3) 47. Kd4 $16 {[%emt 0:00:47]} Kd7 {[%emt 0:00:22]} 48. Rg1 {[%emt 0:01:28]} Kc7 {[%emt 0:03:08]} 49. Be2 {[%emt 0:03:50]} Kd7 {[%emt 0:05:53]} 50. Bd3 {[%emt 0:02:37]} Ke7 {[%emt 0:02:00]} 51. Kc5 {[%emt 0:01:17]} Be8 $2 {[%emt 0:00:13][%mdl 8192]} (51... Kd7 $16 52. Kd4 Rc6) 52. Re1+ $18 {[%emt 0:06:03]} Kd7 {[%emt 0:00:04] [#]} 53. Kd4 $2 {[%emt 0:00:54]} (53. Rxe8 Rc6+ 54. Kxd5 Rd6+ 55. Kc5 Rc6+ 56. Kd5 Rd6+ 57. Kc5 Rc6+ 58. Kd5 $11) (53. Bxb5+ $1 $18 {[%mdl 512] is the precise move to win.} axb5 54. Rxe8 $1 {[%mdl 512]} (54. Kxb5 $2 d4 $19) 54... Rc6+ 55. Kxd5 Rxc3 56. Rg8) 53... Bf7 $16 {[%emt 0:00:45]} 54. Re3 {[%emt 0:00:31]} Rc6 {[%emt 0:00:15]} 55. Re1 {[%emt 0:01:11]} Rd6 $1 {[%emt 0:00:09]} 56. Be2 {[%emt 0:00:12]} Kc7 {[%emt 0:01:42]} 57. Bf3 {[%emt 0:01:16]} Kd7 {[%emt 0:00:04] Inhibits Re7+.} 58. Re3 {[%emt 0:00:25]} Kd8 {[%emt 0:00:08]} 59. Rd3 {[%emt 0:01:17]} Kd7 {[%emt 0:00:08]} 60. Bg2 {[%emt 0:00:35]} Kc7 {[%emt 0:00:28]} 61. Rg3 {[%emt 0:04:52]} Kd7 {[%emt 0:00:12]} 62. Bh1 {[%emt 0:01:14]} Kc7 {[%emt 0:00:31]} 63. Bf3 {[%emt 0:03:28]} Kd7 {[%emt 0:00:21]} 64. Rg1 {[%emt 0:01:39]} Kc7 $1 {[%emt 0:00:31]} 65. Be2 {[%emt 0:03:19]} Kd7 $1 {[%emt 0:00:07]} 66. Bd3 {[%emt 0:00:11]} Ke7 $1 {[%emt 0:00:04]} 67. Kc5 {[%emt 0:01:54] Inhibits Rc6+.} Be8 $1 {[%emt 0:00:04]} 68. Re1+ $2 {[%emt 0:00:53][%mdl 8192]} (68. Be2 $16) 68... Kd7 $18 {[%emt 0:00:01] [#]} 69. Re6 $2 {[%emt 0:02:10]} ({Weaker is} 69. Rxe8 Rc6+ 70. Kxd5 Rd6+ 71. Kc5 Rc6+ 72. Kd5 Rd6+ 73. Kc5 Rc6+ 74. Kd5 $11) (69. Bxb5+ $1 $18 {[%mdl 512]} axb5 {[#]} 70. Rxe8 $1 {[%mdl 512]} Rc6+ 71. Kxd5 Rd6+ 72. Kc5) 69... Rxe6 $11 {[%emt 0:00:03]} 70. fxe6+ {[%emt 0:00:06]} Kxe6 {[%emt 0:00:04] KB-KB} 71. Bf5+ {[%emt 0:00:18]} Ke5 {[%emt 0:00:35] White must now prevent ...h5.} 72. h5 {[%emt 0:00:54]} Bf7 $2 {[%emt 0:05:20][%mdl 8192] Black is on the road to losing.} (72... Bxh5 $1 $11 {and Black has nothing to worry.} 73. gxh5 Kxf5 74. Kxd5 g5) 73. Bc8 $18 {[%emt 0:03:26]} g6 {[%emt 0:05:05]} (73... Kf4 $142 74. Bxa6 Be8 75. Kxd5 (75. Bxb5 Bxb5 76. Kxb5 Kxg4 $16) 75... f5 76. gxf5 Bxh5 77. Bxb5 Bf3+ 78. Kc5 h5) 74. hxg6 {[%emt 0:00:49]} Bxg6 {[%emt 0:00:02]} 75. Bxa6 {[%emt 0:00:35]} Bd3 {[%emt 0:05:53]} 76. Bxb5 {[%emt 0:02:42]} Bxb5 {[%emt 0:00:29]} 77. Kxb5 {[%emt 0:00:06] KP-KP} f5 {[%emt 0:00:13]} 78. gxf5 {[%emt 0:00:19] Intending Kc5 and mate.} h5 {[%emt 0:00:04]} 79. Kc5 {[%emt 0:00:24]} h4 {[%emt 0:00:06]} 80. b5 {[%emt 0:00:07] Threatening mate with b6.} ({Wrong is} 80. f6 $2 Kxf6 81. b5 Ke7 $19) 80... h3 {[%emt 0:00:13]} 81. b6 {[%emt 0:00:04]} h2 {[%emt 0:00:03]} 82. b7 {[%emt 0:00:04]} h1=Q {[%emt 0:00:04]} 83. b8=Q+ {[%emt 0:00:07]} Kxf5 {[%emt 0:00:20] KQ-KQ} 84. Qc8+ {[%emt 0:02:06]} Ke4 {[%emt 0:00:31]} 85. Qg4+ {[%emt 0:00:26]} Kd3 {[%emt 0:00:26]} 86. Qd4+ {[%emt 0:00:10]} Kc2 {[%emt 0:00:06]} 87. b4 {[%emt 0:00:19][%cal Bb3b4,Bb4b5][%mdl 32]} Qh7 {[%emt 0:01:17]} 88. b5 {[%emt 0:00:53] Hoping for b6.} Qc7+ {[%emt 0:01:39]} 89. Kxd5 {[%emt 0:00:38] b6 would kill now.} Qb7+ {[%emt 0:02:13]} 90. Kc4 {[%emt 0:00:42] White threatens Qd3+ and mate.} Kb2 {[%emt 0:00:48]} 91. Qd2+ {[%emt 0:01:43] White mates.} Kb1 {[%emt 0:00:42]} 92. Kb4 {[%emt 0:00:37]} Qe7+ {[%emt 0:00:32]} 93. Kb3 {[%emt 0:00:46][%cal Rd2d1]} Qf7+ {[%emt 0:00:20]} 94. c4 {[%emt 0:00:21][%cal Rd2d1,Bc3c4,Bc4c5,Bc5c6,Bc6c7][%mdl 32]} Qf3+ {[%emt 0:00:03]} 95. Kb4 {[%emt 0:00:49]} Qf8+ {[%emt 0:00:50]} 96. c5 {[%emt 0:00:11]} Qe7 {[%emt 0:00:41]} 97. Qd3+ {[%emt 0:00:22]} Ka1 {[%emt 0:00:11]} 98. b6 {[%emt 0:00:32]} Qb7 {[%emt 0:00:56]} 99. Kb5 {[%emt 0:01:37]} Qb8 {[%emt 0:00:22]} 100. Qd4+ {[%emt 0:00:13]} Ka2 {[%emt 0:00:15]} 101. c6 {[%emt 0:00:09]} Kb3 {[%emt 0:00:16]} 102. Qe3+ {[%emt 0:00:50]} Ka2 {[%emt 0:00:07]} 103. c7 {[%emt 0:00:39]} Qc8 {[%emt 0:00:05]} 104. Qe2+ {[%emt 0:00:36]} Ka3 {[%emt 0:00:33]} 105. Qd3+ {[%emt 0:00:38]} Kb2 {[%emt 0:00:07]} 106. Qd8 {[%emt 0:01:59] Weighted Error Value: White=0.21 (precise) /Black=0.24 (precise)} 1-0

[Event "1st Chessable Sunway Formentera 2022"]
[Site "Formentera Punta Prima"]
[Date "2022.05.04"]
[Round "6"]
[White "Song, Julien"]
[Black "Mouhamad, Joachim"]
[Result "1-0"]
[ECO "A46"]
[WhiteElo "2388"]
[BlackElo "2290"]
[Annotator "TA"]
[PlyCount "81"]
[EventDate "2022.05.05"]
[EventType "swiss"]
[EventCountry "ESP"]
[SourceTitle "playchess.com"]
[Source "ChessBase"]
[SourceQuality "1"]
[TimeControl "40/5400+30:1800+30"]

{[%evp 9,80,42,55,26,54,45,43,35,55,52,44,39,46,10,16,2,27,28,28,24,26,18,15,18,19,16,12,13,15,22,45,16,52,51,52,52,80,72,140,157,203,103,218,239,219,183,329,339,336,297,394,406,460,341,344,320,279,279,276,268,285,284,524,524,951,949,958,947,2601,2352,5800,5791,29999]} 1. d4 {[%emt 0:00:16]} Nf6 {[%emt 0:00:17]} 2. Nf3 {[%emt 0:00:57]} c5 {[%emt 0:00:51]} 3. c3 {[%emt 0:05:34]} b6 {[%emt 0:02:47]} 4. Bg5 {[%emt 0:06:57]} Ne4 {[%emt 0:03:56]} 5. Bh4 {[%emt 0:01:25]} Bb7 {[%emt 0:05:38]} 6. e3 {[%emt 0:08:01] A46: 1 d4 Nf6 2 Nf3 e6: Torre, London and Colle Systems.} d6 {[%emt 0:05:36]} 7. Bd3 {[%emt 0:11:44]} Nd7 {[%emt 0:01:14]} 8. O-O {[%emt 0:02:38] White is slightly better.} g6 {[%emt 0:08:46]} 9. Nbd2 {[%emt 0:03:03]} Nxd2 {[%emt 0:00:25]} 10. Nxd2 {[%emt 0:00:15]} Bg7 {[%emt 0:00:18] [#]} 11. Ne4 $146 {[%emt 0:04:32] aiming for Nxd6+.} ({Predecessor:} 11. Be4 Qc7 12. Qf3 Rb8 13. Rac1 Nf6 14. Bxb7 Qxb7 15. Qxb7 Rxb7 16. Bxf6 Bxf6 17. Ne4 {½-½ (109) Blunk,D-Karasik,E (2194) Playchess.com INT 2004}) 11... Qc7 {[%emt 0:03:51]} 12. a4 {[%emt 0:05:54][%cal Oa4a5]} Qc6 {[%emt 0:14:40]} 13. f3 {[%emt 0:04:41]} a6 {[%emt 0:09:53] Inhibits Bb5.} 14. b4 {[%emt 0:08:28]} d5 {[%emt 0:02:13]} 15. Nf2 {[%emt 0:16:53]} cxb4 {[%emt 0:21:44]} 16. cxb4 {[%emt 0:00:21]} Qd6 {[%emt 0:00:11]} 17. Qd2 {[%emt 0:04:39]} O-O {[%emt 0:00:32]} 18. Bg3 {[%emt 0:00:11]} e5 {[%emt 0:02:58]} 19. Ng4 {[%emt 0:01:58]} f6 {[%emt 0:00:40]} 20. f4 {[%emt 0:01:23][%cal Bf3f4,Bf4f5][%mdl 32]} e4 {[%emt 0:11:18] [#]} 21. f5 $1 {[%emt 0:00:57]} Qe7 {[%emt 0:00:41]} 22. Bc2 {[%emt 0:01:27]} Rfc8 {[%emt 0:00:16]} 23. Bb3 {[%emt 0:00:43]} h5 {[%emt 0:01:05]} ({Black should play} 23... b5) 24. Nf2 $16 {[%emt 0:00:00] White is more active.} g5 {[%emt 0:00:22]} (24... Nf8 $16 25. Qa2 gxf5) 25. h3 {[%emt 0:00:00]} (25. Qa2 $18) 25... Bf8 {[%emt 0:00:11]} (25... b5 $16) 26. Qa2 $18 {[%emt 0:00:15]} h4 {[%emt 0:01:04] [#]} ({Weaker is} 26... Qf7 27. Nxe4 $1 b5 28. axb5) 27. Bh2 {[%emt 0:01:28]} ({Less strong is} 27. Bxd5+ Bxd5 28. Qxd5+ Qf7 29. Qxf7+ Kxf7 $16) 27... Kg7 {[%emt 0:01:21]} (27... Qf7 $142 28. Nxe4 b5 29. axb5 Re8) 28. Bxd5 {[%emt 0:00:46]} Bxd5 {[%emt 0:00:43]} 29. Qxd5 {[%emt 0:00:02]} Re8 {[%emt 0:00:31]} 30. Rac1 {[%emt 0:00:55][%cal Ba1c1,Bc1c6,Bc6c7,Bc7a7][%mdl 32]} Ra7 {[%emt 0:00:12]} 31. b5 {[%emt 0:01:37] bxa6 is the strong threat.} Qf7 {[%emt 0:00:25]} 32. Qxf7+ {[%emt 0:00:41]} Kxf7 {[%emt 0:00:01]} 33. Rc6 {[%emt 0:01:21]} axb5 {[%emt 0:00:17]} 34. axb5 {[%emt 0:00:01]} Ra3 {[%emt 0:00:52]} 35. Rc7 {[%emt 0:01:24]} Ke7 {[%emt 0:00:43]} (35... Rd8 {was called for.} 36. Nxe4 Rxe3) 36. Nxe4 {[%emt 0:03:36][%cal Bf2e4,Be4c3,Bc3d5][%mdl 32]} Rxe3 {[%emt 0:00:20]} 37. Nc3 {[%emt 0:00:37]} Kd8 {[%emt 0:00:30]} 38. Nd5 {[%emt 0:00:19]} Re2 {[%emt 0:01:31]} 39. Ra7 {[%emt 0:00:51] White threatens Ra8+ and mate.} Rc2 {[%emt 0:00:27]} 40. Ra8+ {[%emt 0:00:00]} Rc8 {[%emt 0:00:00]} 41. Bc7# {[%emt 0:00:57] Weighted Error Value: White=0.13 (very precise) /Black=0.55} 1-0